bitfinex-derivatives/quotes_ETHF0:USTF0_20250828
["timestamp","ask_amount","ask_price","bid_price","bid_amount"]
[1756415021699,0.3536,4464.6,4464.4,0.228]
[1756415021899,0.8893,4464.5,4464.4,0.7795]
[1756415022201,1.29247,4464.2,4464.1,0.9234]
[1756415022401,1.29247,4464.2,4464.1,1.1514]
[1756415022597,0.40316,4464.4,4464.1,1.55457]
[1756415022799,1.29246,4464.4,4464.3,0.9234]
[1756415023410,1.29247,4464.2,4464.1,1.1514]
[1756415028703,1.29247,4464.2,4464.1,0.9234]
[1756415028909,1.29247,4464.2,4464.1,1.1514]
[1756415030103,1.29253,4463.6,4463.5,0.9234]
[1756415030308,1.29253,4463.6,4463.5,1.1514]
[1756415030705,1.29253,4463.6,4463.5,0.5515]
[1756415030911,0.3536,4463.4,4463.3,32.8045]
[1756415031109,1.29254,4463.4,4463.3,33.0325]
[1756415031608,0.8893,4463.4,4463.3,33.0325]
[1756415032408,1.29254,4463.4,4463.3,33.0325]
[1756415035010,0.3536,4463.4,4463.3,33.0325]
[1756415035408,0.75684,4463.4,4463.3,33.0325]
[1756415035609,1.29254,4463.4,4463.3,33.0325]
[1756415036010,0.8893,4463.4,4463.3,33.43575]
[1756415036213,0.8893,4463.4,4463.3,33.0325]
[1756415036414,1.29254,4463.4,4463.3,33.0325]
[1756415037315,1.29254,4463.4,4463.3,32.481]
[1756415037716,1.29254,4463.4,4463.3,33.0325]
[1756415042718,0.75684,4463.4,4463.3,33.0325]
[1756415046424,1.30864,4463.4,4463.3,32.8045]
[1756415046630,1.30864,4463.4,4463.3,33.0325]
[1756415047326,0.40327,4463.1,4463.0,0.5204]
[1756415047631,1.3205,4462.8,4462.7,0.8668]
[1756415047830,1.3205,4462.8,4462.7,1.0948]
[1756415048123,1.3205,4462.8,4462.7,0.8668]
[1756415048530,1.3205,4462.8,4462.7,1.0948]
[1756415048823,1.3205,4462.8,4462.7,0.5744]
[1756415049222,0.5518,4462.7,4461.9,0.5204]
[1756415049422,0.5518,4462.7,4462.1,0.5204]
[1756415049623,2.2441,4463.7,4462.2,1.0948]
[1756415049624,0.3654,4462.3,4462.2,1.0948]
[1756415050431,0.9172,4462.3,4462.2,1.0948]
[1756415050633,0.5518,4463.6,4462.3,0.5204]
[1756415050828,0.9172,4462.5,4462.4,1.0948]
[1756415055137,0.40338,4461.9,4461.8,32.269]
[1756415055436,0.95518,4461.9,4461.8,33.0174]
[1756415055636,0.40338,4461.9,4461.8,33.0174]
[1756415067545,0.40338,4461.9,4461.8,33.42078]
[1756415067744,0.40338,4461.9,4461.8,33.0174]
[1756415068237,0.40338,4461.9,4461.8,32.7894]
[1756415068440,0.40338,4461.9,4461.8,33.42078]
[1756415069146,0.40338,4461.9,4461.8,33.0174]
[1756415072543,0.40338,4461.9,4461.8,33.42078]
[1756415072848,0.40338,4461.9,4461.8,33.0174]
[1756415077350,0.90418,4461.9,4461.8,33.0174]
[1756415077550,0.40338,4461.9,4461.8,33.0174]
[1756415078355,0.40338,4461.9,4461.8,33.42078]
[1756415079048,0.40338,4461.9,4461.8,33.0174]
[1756415080150,0.40338,4461.9,4461.8,33.42078]
[1756415082357,0.40338,4461.9,4461.8,33.0174]
[1756415083357,0.40338,4461.9,4461.8,35.02538642]
[1756415087960,0.40338,4461.9,4461.8,3.11298642]
[1756415091263,0.40332,4462.6,4462.5,0.8938]
[1756415091459,1.0082,4463.0,4462.6,0.5372]
[1756415091663,1.0082,4463.0,4462.9,0.8938]
[1756415091664,0.40328,4463.0,4462.9,0.8938]
[1756415091958,0.40328,4463.0,4462.9,1.1218]
[1756415093864,0.40328,4463.0,4462.9,1.1218]
[1756415099465,0.90408,4463.0,4462.9,1.1218]
[1756415100866,1.26508,4463.0,4462.9,1.1218]
[1756415101959,0.40328,4463.0,4462.9,1.1218]
[1756415102160,0.40323,4463.6,4463.5,0.8938]
[1756415102361,0.40323,4463.6,4463.5,1.1218]
[1756415102560,0.90403,4463.6,4463.5,1.1218]
[1756415102762,1.26503,4463.6,4463.5,1.1218]
[1756415103565,1.26503,4463.6,4462.9,2.90531494]
[1756415103566,1.26508,4463.0,4462.9,2.90531494]
[1756415103765,1.26508,4463.0,4462.9,0.7652]
[1756415104463,0.90409,4462.8,4462.7,32.276]
[1756415104865,0.90409,4462.8,4462.7,32.504]
[1756415104866,4.90409,4462.8,4462.7,32.504]
[1756415105064,5.12817,4462.8,4462.7,32.504]
[1756415105264,1.26517,4462.0,4461.9,0.8938]
[1756415105464,1.26517,4462.0,4461.9,1.1218]
[1756415106665,1.26517,4462.0,4461.9,0.8938]
[1756415106871,1.26517,4462.0,4461.9,0.5846]
[1756415107270,1.26517,4462.0,4461.9,1.084]
[1756415107866,0.40337,4462.0,4461.9,1.084]
[1756415109968,1.24417,4462.0,4461.9,0.856]
[1756415110168,1.24417,4462.0,4461.9,1.084]
[1756415110769,1.24417,4462.0,4461.9,0.5846]
[1756415111271,0.74148,4461.8,4461.7,0.8336]
[1756415111574,1.24418,4461.8,4461.7,1.0616]
[1756415112575,0.40338,4461.8,4461.7,1.0616]
[1756415114474,0.40337,4462.0,4461.9,0.3342]
[1756415114674,0.40337,4462.0,4461.9,0.8336]
[1756415115074,0.40332,4462.5,4462.4,0.8336]
[1756415115371,0.40332,4462.5,4462.4,1.0616]
[1756415115968,1.24412,4462.5,4462.4,1.0616]
[1756415116171,0.3381,4461.8,4461.7,0.4994]
[1756415116374,1.24418,4461.8,4461.7,1.0616]
[1756415116570,0.40338,4461.8,4461.7,1.0616]
[1756415118772,0.40337,4462.0,4461.7,1.46499]
[1756415118972,0.40337,4462.0,4461.9,0.3342]
[1756415119177,0.40335,4462.2,4462.1,0.8336]
[1756415119378,0.40335,4462.2,4462.1,1.0616]
[1756415119677,0.40334,4462.4,4462.3,0.3342]
[1756415119869,0.40334,4462.4,4462.3,0.8336]
[1756415120977,0.40332,4462.5,4462.4,0.4994]
[1756415121179,1.24412,4462.5,4462.4,1.0616]
[1756415122782,0.40332,4462.5,4462.4,1.0616]
[1756415123771,1.24412,4462.5,4462.4,0.8336]
[1756415123984,1.24412,4462.5,4462.4,1.0616]
[1756415124770,1.24412,4462.5,4462.4,0.5622]
[1756415124971,1.24412,4462.5,4462.4,1.0616]
[1756415126080,0.40332,4462.5,4462.4,1.0616]
[1756415128784,1.24412,4462.5,4462.4,1.0616]
[1756415133479,0.40332,4462.5,4462.4,1.0616]
[1756415134987,0.5027,4462.8,4462.5,0.4994]
[1756415135183,0.90599,4462.8,4462.7,0.8336]
[1756415135384,0.40329,4462.8,4462.7,0.8336]
[1756415136086,0.40329,4462.8,4462.7,1.2369]
[1756415136385,2.01573,4464.5,4463.3,0.5182]
[1756415136587,1.19644,4463.5,4463.4,1.0671]
[1756415137188,1.19644,4463.5,4463.4,0.5489]
[1756415137488,1.19644,4463.5,4463.4,0.228]
[1756415137782,1.19644,4463.5,4463.1,0.5182]
[1756415137783,1.19646,4463.2,4463.1,0.8391]
[1756415137981,0.72268,4463.0,4462.9,0.5182]
[1756415138176,1.19648,4463.0,4462.9,0.7462]
[1756415138687,1.19648,4463.0,4462.9,1.0671]
[1756415139777,1.00822,4462.9,4462.5,40.8]
[1756415139983,1.19651,4462.6,4462.5,0.8391]
[1756415140285,1.19651,4462.6,4462.5,1.0671]
[1756415148579,1.48195,4463.2,4463.1,0.3209]
[1756415148891,1.19646,4463.2,4463.1,1.0671]
[1756415150688,1.1965,4462.7,4462.6,2.85061494]
[1756415150990,1.1965,4462.7,4462.6,3.07861494]
[1756415151494,0.40329,4462.8,4462.6,2.96372494]
[1756415151693,1.19649,4462.8,4462.7,0.8391]
[1756415152090,1.19649,4462.8,4462.7,0.5489]
[1756415152893,1.19649,4462.8,4462.7,1.0671]
[1756415154189,1.00812,4463.4,4462.8,0.3209]
[1756415154382,1.19645,4463.3,4463.2,0.8391]
[1756415154591,1.19645,4463.3,4463.2,1.0671]
[1756415156793,0.7932,4463.3,4463.2,0.8391]
[1756415156994,1.00798,4464.0,4463.2,0.95216]
[1756415157196,0.40325,4463.3,4463.2,0.5489]
[1756415157394,1.19645,4463.3,4463.2,0.5489]
[1756415157800,1.19645,4463.3,4463.2,1.0671]
[1756415161502,0.40328,4463.0,4462.9,2.01151494]
[1756415161702,1.19649,4462.8,4462.7,0.5182]
[1756415161902,1.19649,4462.8,4462.7,0.7462]
[1756415162102,1.19649,4462.8,4462.7,1.0671]
[1756415162299,0.40332,4462.5,4462.4,2.01151494]
[1756415162604,1.19652,4462.5,4462.4,0.5489]
[1756415163098,1.19652,4462.5,4462.4,1.0671]
[1756415163800,1.19652,4462.5,4462.4,0.8391]
[1756415164104,1.19652,4462.5,4462.4,1.0671]
[1756415164305,1.19652,4462.5,4462.4,0.8391]
[1756415164606,1.19652,4462.5,4462.4,1.0671]
[1756415165898,1.19652,4462.5,4462.4,0.8391]
[1756415166098,1.19652,4462.5,4462.4,1.0671]
[1756415169100,1.19652,4462.5,4462.4,0.8391]
[1756415169299,1.19652,4462.5,4462.4,1.0671]
[1756415169604,1.19652,4462.5,4462.4,0.8391]
[1756415169816,1.19652,4462.5,4462.4,1.0671]
[1756415175916,0.7932,4462.5,4462.4,1.0671]
[1756415176221,0.40331,4462.6,4462.5,0.8025]
[1756415176423,1.22901,4462.6,4462.5,0.8025]
[1756415178518,1.22901,4462.6,4462.5,1.0305]
[1756415180224,0.75181,4462.6,4462.5,1.0305]
[1756415181628,0.75181,4462.6,4462.5,1.43382]
[1756415181820,0.75181,4462.6,4462.5,1.0305]
[1756415182814,1.22901,4462.6,4462.5,1.0305]
[1756415187728,1.22901,4462.6,4462.5,1.43382]
[1756415187930,1.22901,4462.6,4462.5,1.0305]
[1756415188933,0.40331,4462.6,4462.5,1.0305]
[1756415189128,1.48542,4462.9,4462.5,1.43382]
[1756415189129,0.4772,4462.9,4462.5,1.43382]
[1756415189433,0.88048,4462.9,4462.8,0.8025]
[1756415189633,0.88048,4462.9,4462.8,1.0305]
[1756415189833,1.22893,4463.5,4463.4,0.8025]
[1756415190033,1.22893,4463.5,4463.4,1.0305]
[1756415193533,1.22893,4463.5,4463.4,0.228]
[1756415196829,1.00805,4463.7,4462.8,0.796]
[1756415196830,1.21928,4462.9,4462.8,0.796]
[1756415197030,1.21928,4462.9,4462.8,1.024]
[1756415199340,0.73589,4462.8,4462.7,2.01151494]
[1756415199539,1.2193,4462.7,4462.6,2.01151494]
[1756415199734,0.40333,4462.4,4462.3,2.32551494]
[1756415199935,1.21933,4462.4,4462.3,2.32551494]
[1756415200331,1.21933,4462.4,4462.3,2.55351494]
[1756415200635,1.21933,4462.4,4462.3,3.03551494]
[1756415201732,1.21933,4462.4,4462.3,2.80751494]
[1756415201935,1.21933,4462.4,4462.3,3.03551494]
[1756415202336,0.40333,4462.4,4462.3,3.03551494]
[1756415203544,0.4834,4462.7,4462.3,2.55351494]
[1756415203740,1.00825,4462.8,4462.4,0.482]
[1756415203941,0.73589,4462.8,4462.7,0.796]
[1756415204141,0.73589,4462.8,4462.7,1.024]
[1756415204343,1.21929,4462.8,4462.7,1.024]
[1756415204738,1.21929,4462.8,4462.7,0.796]
[1756415204938,1.21929,4462.8,4462.7,1.024]
[1756415208049,1.21929,4462.8,4462.7,1.4273]
[1756415208345,0.73589,4462.8,4462.7,1.024]
[1756415208544,0.73589,4462.8,4462.7,1.4273]
[1756415208943,0.3326,4462.8,4462.7,1.4273]
[1756415210048,0.40329,4462.9,4462.8,1.19929]
[1756415210249,0.40329,4462.9,4462.8,2.81014088]
[1756415210553,1.21929,4462.9,4462.8,0.796]
[1756415210847,1.21929,4462.9,4462.8,2.81014088]
[1756415211046,1.21929,4462.9,4462.8,0.796]
[1756415212749,1.21929,4462.9,4462.8,1.19929]
[1756415213151,1.21929,4462.9,4462.8,0.796]
[1756415213745,0.3326,4462.9,4462.8,1.19929]
[1756415213950,0.40327,4463.1,4463.0,0.796]
[1756415214147,1.4915,4463.5,4463.1,0.796]
[1756415214148,0.40326,4463.2,4463.1,0.796]
[1756415214650,1.21926,4463.2,4463.1,0.796]
[1756415218349,0.816,4463.2,4463.1,0.796]
[1756415218548,0.40317,4464.3,4464.2,0.482]
[1756415218754,0.40317,4464.3,4464.2,1.023]
[1756415219050,0.88657,4464.3,4464.2,1.023]
[1756415219250,1.21917,4464.3,4464.2,1.023]
[1756415219847,0.816,4464.3,4464.2,1.023]
[1756415220445,0.3326,4464.3,4464.2,1.023]
[1756415221350,0.40315,4464.5,4464.2,0.541]
[1756415221655,0.40313,4464.6,4464.3,0.796]
[1756415221855,0.816,4464.6,4464.5,0.796]
[1756415222153,0.73569,4465.1,4465.0,0.796]
[1756415222344,0.3326,4465.1,4465.0,1.023]
[1756415222747,0.816,4465.6,4465.5,0.796]
[1756415222949,0.816,4465.6,4465.5,1.023]
[1756415224146,0.816,4465.6,4465.5,0.541]
[1756415224348,0.816,4465.6,4465.5,0.227]
[1756415225453,0.816,4465.6,4465.5,0.541]
[1756415225757,0.816,4465.6,4465.5,1.023]
[1756415228257,0.816,4465.6,4465.5,0.541]
[1756415230159,0.72017,4465.3,4465.2,0.7971]
[1756415230360,1.19477,4465.3,4465.2,1.0111]
[1756415234056,1.00771,4465.2,4464.8,0.4593]
[1756415234360,1.19485,4464.4,4464.3,0.3378]
[1756415234558,1.19485,4464.4,4464.3,0.5648]
[1756415234861,1.19485,4464.4,4464.3,1.0241]
[1756415244162,0.40313,4464.7,4464.6,0.3378]
[1756415244361,0.4746,4465.3,4464.8,0.7971]
[1756415244562,0.4746,4465.3,4464.7,0.40312]
[1756415244563,1.19477,4465.3,4465.2,0.3378]
[1756415244867,1.19477,4465.3,4465.2,0.7971]
[1756415247066,0.72017,4465.3,4465.2,1.20018]
[1756415247266,0.3171,4466.0,4465.9,0.3378]
[1756415247461,0.7201,4466.0,4465.9,1.0241]
[1756415247964,1.1947,4466.0,4465.9,1.0241]
[1756415251474,0.40306,4465.5,4465.4,0.74086]
[1756415251679,1.19476,4465.5,4465.4,0.96786]
[1756415252078,0.7917,4465.5,4465.4,1.42716]
[1756415252586,0.3171,4465.5,4465.4,1.42716]
[1756415252779,0.87763,4465.7,4465.5,0.40305]
[1756415252979,1.19473,4465.7,4465.6,0.7971]
[1756415256887,1.18592,4465.9,4465.8,0.3145]
[1756415257081,0.7829,4465.9,4465.8,1.18672]
[1756415257785,0.3292,4465.9,4465.8,1.18672]
[1756415258285,0.4537,4466.6,4465.4,3.24840686]
[1756415258487,1.18585,4466.6,4466.5,0.7837]
[1756415258688,1.18585,4466.6,4466.5,1.0107]
[1756415262290,0.40293,4466.8,4466.6,0.4692]
[1756415262489,0.40293,4466.8,4466.7,0.7837]
[1756415262688,0.40292,4467.0,4466.7,0.7837]
[1756415262889,0.3292,4467.3,4467.2,0.3145]
[1756415263086,0.7829,4467.3,4467.2,1.0107]
[1756415263795,1.18579,4467.3,4467.2,1.0107]
[1756415264891,1.18579,4467.3,4467.2,0.227]
[1756415265391,1.18579,4467.3,4467.2,1.0107]
[1756415267004,1.18579,4467.3,4467.2,0.7837]
[1756415267298,1.18579,4467.3,4467.2,0.227]
[1756415267592,1.18579,4467.3,4466.9,0.4692]
[1756415267593,1.00723,4467.3,4466.9,0.3145]
[1756415267796,1.18581,4467.0,4466.9,0.7837]
[1756415267996,1.18581,4467.0,4466.9,1.0107]
[1756415268801,0.4537,4467.4,4466.9,0.94442]
[1756415268998,0.4029,4467.1,4467.0,0.7837]
[1756415269299,1.1858,4467.1,4467.0,1.0107]
[1756415269499,1.1858,4467.1,4467.0,0.7837]
[1756415269797,0.73213,4466.8,4466.7,0.3145]
[1756415269991,0.73213,4466.8,4466.7,41.3415]
[1756415269992,1.18583,4466.8,4466.7,41.3415]
[1756415270392,1.18583,4466.8,4466.7,1.0107]
[1756415270989,0.73213,4466.8,4466.7,1.41364]
[1756415271194,1.18583,4466.8,4466.7,1.0107]
[1756415277700,1.18583,4466.8,4466.7,0.7837]
[1756415277905,1.18588,4466.3,4466.2,0.7837]
[1756415278106,1.18588,4466.3,4466.2,1.0107]
[1756415279498,1.18588,4466.3,4466.2,0.7837]
[1756415279703,1.18588,4466.3,4466.2,1.0107]
[1756415280798,0.40301,4466.0,4465.9,40.8]
[1756415281108,1.18591,4466.0,4465.9,1.0107]
[1756415281303,0.7829,4466.0,4465.9,1.41372]
[1756415281610,0.40298,4466.4,4465.9,0.6962]
[1756415281805,0.73218,4466.4,4466.3,0.7837]
[1756415282107,0.7829,4466.4,4466.3,1.18668]
[1756415282296,1.18587,4466.4,4466.3,0.7837]
[1756415284706,0.40296,4466.5,4466.3,1.0107]
[1756415284906,0.85666,4466.5,4466.4,0.4692]
[1756415285108,1.18586,4466.5,4466.4,0.7837]
[1756415285808,0.7829,4466.5,4466.4,1.18667]
[1756415286010,1.18586,4466.5,4466.4,1.18667]
[1756415286311,1.18586,4466.5,4466.4,0.7837]
[1756415286709,1.00725,4467.3,4466.5,0.40295]
[1756415286710,0.85784,4466.8,4466.5,0.40295]
[1756415286913,1.17994,4466.8,4466.7,0.7616]
[1756415287111,1.17994,4466.8,4466.7,0.9886]
[1756415287513,1.17994,4466.8,4466.7,1.39154]
[1756415287713,0.777,4466.8,4466.7,1.39154]
[1756415287913,1.17993,4466.8,4466.7,1.39154]
[1756415288308,1.17993,4466.8,4466.7,0.9886]
[1756415288512,3.22089385,4468.7,4466.7,0.9886]
[1756415288513,0.777,4467.0,4466.8,0.4559]
[1756415288712,0.777,4467.0,4466.9,0.3057]
[1756415288914,1.17992,4467.0,4466.9,0.7616]
[1756415289309,1.17992,4467.0,4466.9,1.16453]
[1756415289819,0.777,4467.0,4466.9,0.7616]
[1756415291415,1.17988,4467.4,4467.3,0.3057]
[1756415291611,1.17988,4467.4,4467.3,0.9886]
[1756415292317,0.777,4467.4,4467.3,0.9886]
[1756415292611,1.17988,4467.4,4467.3,0.9886]
[1756415292810,0.777,4467.4,4467.3,0.9886]
[1756415294014,1.17988,4467.4,4467.3,0.9886]
[1756415294608,1.17988,4467.4,4467.3,0.6829]
[1756415295014,1.17988,4467.4,4467.3,0.9886]
[1756415296618,0.40295,4466.6,4466.5,2.01376686]
[1756415296813,1.17995,4466.6,4466.5,0.227]
[1756415300123,1.17995,4466.6,4466.5,0.9886]
[1756415302717,1.17995,4466.6,4466.5,0.7616]
[1756415302921,1.17995,4466.6,4466.5,0.9886]
[1756415303923,1.17999,4466.2,4466.1,2.77536686]
[1756415304122,1.17999,4466.2,4466.1,3.22625686]
[1756415304325,1.17999,4466.2,4466.1,3.00236686]
[1756415304524,0.3221,4467.0,4466.9,0.3057]
[1756415304726,0.72503,4466.8,4466.7,0.7616]
[1756415305028,0.72503,4466.8,4466.7,0.9886]
[1756415305227,1.17993,4466.8,4466.7,0.9886]
[1756415305620,0.40293,4466.8,4466.7,0.9886]
[1756415306016,0.40292,4467.0,4466.7,0.93564]
[1756415306221,0.40292,4467.0,4466.9,0.7616]
[1756415306420,1.17992,4467.0,4466.9,0.7616]
[1756415308221,1.17996,4466.6,4466.5,0.7616]
[1756415308427,1.17996,4466.6,4466.5,0.9886]
[1756415310928,1.17996,4466.6,4466.5,0.7616]
[1756415311130,0.4549,4466.5,4466.4,32.245]
[1756415311329,0.777,4466.5,4466.4,0.227]
[1756415312732,0.403,4466.1,4466.0,0.4559]
[1756415313031,1.18003,4465.7,4465.6,0.7616]
[1756415313225,1.18003,4465.7,4465.6,0.9886]
[1756415314640,0.777,4465.7,4465.6,0.9886]
[1756415314834,0.40303,4465.8,4465.7,0.7616]
[1756415315337,1.18003,4465.8,4465.7,0.7616]
[1756415317425,1.18003,4465.8,4465.7,0.9886]
[1756415318132,0.777,4465.8,4465.7,0.9886]
[1756415318331,0.72512,4465.8,4465.7,0.9886]
[1756415318930,0.40302,4465.8,4465.7,0.9886]
[1756415319133,0.7415,4466.8,4466.7,0.7757]
[1756415319333,0.7415,4466.8,4466.7,1.0027]
[1756415319737,1.14443,4466.8,4466.7,1.0027]
[1756415319929,0.40293,4466.8,4466.7,1.0027]
[1756415321335,0.436,4467.0,4466.7,1.40564]
[1756415321530,0.3055,4467.0,4466.9,0.3207]
[1756415321730,0.7415,4467.0,4466.9,0.7757]
[1756415322333,1.14442,4467.0,4466.9,0.7757]
[1756415326039,1.14442,4467.0,4466.9,1.0027]
[1756415326238,0.7415,4467.0,4466.9,1.0027]
[1756415326438,1.14442,4467.0,4466.9,1.40563]
[1756415326638,0.70842,4467.0,4466.9,1.40563]
[1756415326834,0.70842,4467.0,4466.9,1.0027]
[1756415327036,0.70842,4467.0,4466.9,0.7757]
[1756415327231,1.14442,4467.0,4466.9,1.0027]
[1756415327435,1.14442,4467.0,4466.9,1.40563]
[1756415327636,0.3055,4467.0,4466.9,1.40563]
[1756415327941,0.7415,4467.2,4467.1,1.17861]
[1756415328137,0.3055,4467.2,4467.1,1.17861]
[1756415328536,0.7084,4467.2,4467.1,1.17861]
[1756415328835,0.3055,4467.2,4467.1,1.17861]
[1756415329037,0.7415,4467.2,4467.1,1.17861]
[1756415329837,1.1444,4467.2,4467.1,1.17861]
[1756415330044,0.7415,4467.2,4467.1,1.17861]
[1756415330943,1.1444,4467.2,4467.1,1.17861]
[1756415331532,0.7415,4467.2,4467.1,1.17861]
[1756415331938,0.83889,4467.3,4467.2,0.8579]
[1756415332139,0.83889,4467.3,4467.2,1.4056]
[1756415332339,0.83889,4467.3,4467.2,1.0027]
[1756415332539,1.14439,4467.3,4467.2,1.0027]
[1756415334439,0.7415,4467.3,4467.2,1.4056]
[1756415334636,1.14439,4467.3,4467.2,1.0027]
[1756415336545,0.40291,4467.1,4467.0,0.7757]
[1756415336746,1.14441,4467.1,4467.0,1.0027]
[1756415339542,0.7415,4467.1,4467.0,1.40562]
[1756415339946,0.4029,4467.3,4467.0,1.40562]
[1756415340148,0.7415,4467.1,4467.0,0.5477]
[1756415340651,1.14441,4467.1,4467.0,0.7757]
[1756415340849,1.14441,4467.1,4467.0,1.0027]
[1756415342054,0.7415,4467.1,4467.0,1.40562]
[1756415342446,1.14441,4467.1,4467.0,1.0027]
[1756415342647,1.14441,4467.1,4467.0,1.40562]
[1756415342850,0.7415,4467.1,4467.0,1.40562]
[1756415344954,1.14441,4467.1,4467.0,1.0027]
[1756415345354,0.7415,4467.1,4467.0,1.40562]
[1756415346056,0.3055,4467.1,4467.0,1.40562]
[1756415346258,0.7615,4467.3,4467.2,0.7101]
[1756415346457,1.16439,4467.3,4467.2,0.7101]
[1756415346859,0.7615,4467.3,4467.2,1.113]
[1756415347158,1.16439,4467.3,4467.2,1.113]
[1756415347546,1.16439,4467.3,4467.2,0.7101]
[1756415347752,1.16439,4467.3,4467.2,1.113]
[1756415348348,1.16439,4467.3,4467.2,0.7101]
[1756415350061,1.16441,4467.1,4467.0,0.4226]
[1756415350250,1.16441,4467.1,4467.0,0.6496]
[1756415350858,1.16441,4467.1,4467.0,0.4226]
[1756415351056,1.16441,4467.1,4467.0,0.6496]
[1756415351360,1.16442,4467.0,4466.9,2.01376686]
[1756415351555,1.16442,4467.0,4466.9,2.24076686]
[1756415351754,0.40294,4466.7,4466.6,2.01376686]
[1756415351952,1.16444,4466.7,4466.6,2.01376686]
[1756415352155,1.16444,4466.7,4466.6,0.227]
[1756415354154,0.40295,4466.6,4466.5,32.246]
[1756415354355,0.85885,4466.6,4466.5,32.473]
[1756415357062,0.85885,4466.6,4466.5,32.8956]
[1756415357466,5.08274,4466.6,4466.5,32.246]
[1756415357765,5.08274,4466.6,4466.5,32.473]
[1756415358265,4.85885,4466.6,4466.5,32.473]
[1756415360165,0.70861,4466.0,4465.9,0.69052]
[1756415360361,0.40301,4466.0,4465.9,0.91752]
[1756415360866,0.85891,4466.0,4465.9,1.34012]
[1756415361265,1.16451,4466.0,4465.9,1.34012]
[1756415361458,0.40301,4466.0,4465.9,1.34012]
[1756415361764,0.40297,4466.4,4466.3,0.7101]
[1756415361967,0.40297,4466.4,4466.3,0.9371]
[1756415362366,0.40297,4466.4,4466.3,1.34008]
[1756415362767,0.40297,4466.4,4466.3,0.9371]
[1756415363161,0.40297,4466.5,4466.3,0.91748]
[1756415363363,1.16447,4466.5,4466.4,0.9371]
[1756415363870,2.01441,4467.5,4467.1,0.2875]
[1756415363871,0.7615,4467.2,4467.1,0.2875]
[1756415364067,1.1644,4467.2,4467.1,0.9371]
[1756415364567,1.1644,4467.2,4467.1,0.5145]
[1756415364968,1.1644,4467.2,4467.1,0.9371]
[1756415369764,1.1644,4467.2,4467.1,1.34001]
[1756415370567,0.4559,4467.5,4467.4,0.2875]
[1756415370771,1.00709,4468.0,4467.4,1.11298]
[1756415370966,0.40287,4467.6,4467.5,0.7101]
[1756415371166,0.85877,4467.6,4467.5,1.33997]
[1756415371361,1.16437,4467.6,4467.5,1.33997]
[1756415371566,1.16437,4467.6,4467.5,0.9371]
[1756415372768,0.4050332,4467.8,4467.7,0.4226]
[1756415372972,1.1665332,4467.8,4467.7,0.7101]
[1756415373471,0.0021932,4467.8,4467.7,1.11295]
[1756415373774,0.0021932,4467.8,4467.7,5.33995]
[1756415374274,0.7636932,4467.8,4467.7,0.9371]
[1756415375868,0.7636932,4467.8,4467.7,0.7101]
[1756415376376,0.7636932,4467.8,4467.7,0.9371]
[1756415377566,0.3077932,4467.8,4467.7,0.9371]
[1756415377876,0.0021932,4467.8,4467.7,0.9371]
[1756415379368,0.0021932,4467.8,4467.7,4.9371]
[1756415379675,0.0021932,4467.8,4467.7,6.95086686]
[1756415379874,0.0021932,4467.8,4467.7,4.9371]
[1756415380067,0.0021932,4467.8,4467.7,6.95086686]
[1756415380275,0.0021932,4467.8,4467.7,4.9371]
[1756415381875,0.0021932,4467.8,4467.7,4.7101]
[1756415382077,0.0021932,4467.8,4467.7,4.9361]
[1756415384285,0.0021932,4467.8,4467.7,5.33895]
[1756415387980,0.0021932,4467.8,4467.7,46.13895]
[1756415393175,0.0021932,4467.8,4467.7,42.13895]
[1756415393887,0.0021932,4467.8,4467.7,74.37395]
[1756415397282,0.0021932,4467.8,4467.7,76.38771686]
[1756415398583,0.8424432,4467.8,4467.7,75.75886686]
[1756415398783,0.4395932,4467.8,4467.7,35.58771686]
[1756415398985,0.0021932,4467.8,4467.7,33.57395]
[1756415400191,0.0021932,4467.8,4467.7,35.18486686]
[1756415400888,0.0021932,4467.8,4467.7,35.58771686]
[1756415401082,0.0021932,4467.8,4467.7,35.36171686]
[1756415401285,0.0021932,4467.8,4467.7,35.58771686]
[1756415401486,0.0021932,4467.8,4467.7,33.57395]
[1756415406395,0.8233432,4467.8,4467.7,33.1711]
[1756415406597,0.4204932,4467.8,4467.7,33.57395]
[1756415406797,0.8233432,4467.8,4467.7,33.1711]
[1756415407701,0.4050432,4467.8,4467.7,33.1711]
[1756415407899,0.8233432,4467.8,4467.7,32.9451]
[1756415408201,0.8233432,4467.8,4467.7,33.1711]
[1756415411301,0.8233432,4467.8,4467.7,33.57395]
[1756415411501,0.8233432,4467.8,4467.7,33.1711]
[1756415413800,0.8233432,4467.8,4467.7,32.9451]
[1756415413998,0.8233432,4467.8,4467.7,33.1711]
[1756415417207,0.4204932,4467.8,4467.7,33.57395]
[1756415417507,0.8233432,4467.8,4467.7,33.1711]
[1756415423519,0.8233432,4467.8,4467.7,32.9451]
[1756415423811,0.8233432,4467.8,4467.7,33.1711]
[1756415426015,0.8233432,4467.8,4467.7,35.18122908]
[1756415428609,0.8233432,4467.8,4467.7,34.95522908]
[1756415428815,0.8233432,4467.8,4467.7,35.18122908]
[1756415433320,0.8233432,4467.8,4467.7,33.1711]
[1756415434215,0.8233432,4467.8,4467.7,35.1814048]
[1756415434518,0.8233432,4467.8,4467.7,33.1711]
[1756415434817,0.8233432,4467.8,4467.7,35.18147926]
[1756415436320,0.4050432,4467.8,4467.7,35.18147926]
[1756415436912,0.4050332,4467.8,4467.7,2.94647926]